bitfinex/quotes_ETHUSD_20240811
["timestamp","ask_amount","ask_price","bid_price","bid_amount"]
[1723374892356,2.4243,2671.4,2670.8,0.07487132]
[1723374892846,2.4243,2671.4,2670.9,0.06213589]
[1723374894424,2.4243,2671.4,2670.9,0.13700509]
[1723374894758,3.0,2671.8,2670.9,0.13700509]
[1723374894943,6.4543,2671.8,2670.9,0.13700509]
[1723374895842,5.4243,2671.8,2670.9,0.13700509]
[1723374898136,5.45025205,2671.8,2670.9,0.13700509]
[1723374898343,5.4243,2671.8,2670.9,0.13700509]
[1723374900477,0.02595205,2671.7,2670.9,0.06213589]
[1723374900968,0.02595205,2671.7,2670.5,3.07479985]
[1723374901174,2.4243,2671.5,2671.0,0.06208279]
[1723374901327,0.02595205,2671.4,2670.3,5.67421723]
[1723374901638,0.02595205,2671.4,2670.2,3.72]
[1723374901639,2.4243,2671.3,2670.2,3.72]
[1723374901824,2.4243,2671.1,2670.4,0.06225064]
[1723374902025,2.4243,2670.9,2670.2,3.72]
[1723374902266,2.4243,2670.9,2670.3,0.06228169]
[1723374902267,0.02595205,2670.8,2670.3,0.06228169]
[1723374902478,0.24502521,2670.7,2670.3,0.06228169]
[1723374902683,0.24502521,2670.7,2670.2,3.72]
[1723374902829,2.4243,2670.9,2670.3,0.07489078]
[1723374903023,2.4243,2670.9,2670.3,0.07488985]
[1723374903252,2.4243,2670.9,2670.4,0.0625192]
[1723374903729,0.02595205,2670.8,2670.4,0.0625192]
[1723374903921,2.66932521,2670.7,2669.3,2.4629]
[1723374904129,3.02595205,2670.6,2670.5,0.06244767]
[1723374904349,2.4243,2670.7,2669.4,0.07490082]
[1723374904536,2.4243,2670.7,2669.5,2.4629]
[1723374904724,2.4243,2670.7,2669.6,0.32867426]
[1723374905164,2.4243,2670.7,2669.7,0.06281389]
[1723374905354,2.4243,2670.7,2669.8,0.07489419]
[1723374905781,2.4243,2670.7,2669.9,0.06275176]
[1723374906067,2.4243,2670.7,2670.0,0.07489421]
[1723374906461,2.4243,2670.7,2670.1,0.06268965]
[1723374907066,2.66673,2670.7,2670.1,0.13758412]
[1723374907269,2.66673,2670.7,2670.1,0.06268965]
[1723374907473,0.02595205,2670.6,2670.1,0.06268965]
[1723374907676,0.02595205,2670.6,2669.5,2.4629]
[1723374907849,0.02595205,2670.6,2669.6,0.07490497]
[1723374907850,3.0,2670.6,2669.6,0.07490497]
[1723374908057,2.4243,2670.7,2669.7,2.3142]
[1723374908243,2.4243,2670.7,2669.8,0.07489677]
[1723374908441,2.4243,2670.7,2669.9,0.06270391]
[1723374908646,2.38495205,2671.3,2670.0,0.07488952]
[1723374908842,2.38495205,2671.3,2670.0,5.74910675]
[1723374908843,0.02595205,2671.2,2670.0,5.74910675]
[1723374909042,2.359,2671.3,2670.1,2.3768418]
[1723374909273,2.359,2671.3,2670.2,0.88747825]
[1723374909455,2.359,2671.3,2670.3,0.07488342]
[1723374909761,2.359,2671.3,2670.3,0.13746311]
[1723374910370,0.02595205,2671.2,2670.3,0.06257969]
[1723374910594,2.359,2671.0,2670.0,5.67421723]
[1723374910786,2.359,2670.8,2669.7,3.0]
[1723374910957,0.02595205,2670.7,2669.5,2.3142]
[1723374911159,0.02595205,2670.7,2669.6,0.53142]
[1723374911372,0.02595205,2670.7,2669.6,3.5942171]
[1723374911668,2.359,2670.8,2669.7,0.07490388]
[1723374911869,0.02595205,2670.7,2669.8,2.3142]
[1723374912085,0.26444726,2670.7,2669.8,1.2209984]
[1723374912285,0.02595205,2670.7,2669.8,1.2209984]
[1723374913753,2.359,2670.6,2669.8,1.2209984]
[1723374914070,0.02595205,2670.5,2669.8,0.06273497]
[1723374914478,0.02595205,2670.5,2669.6,0.53142]
[1723374914677,2.359,2670.4,2669.9,0.06296885]
[1723374914894,2.38495205,2670.3,2669.3,5.67421723]
[1723374915110,2.38495205,2670.3,2670.0,0.06293779]
[1723374915407,2.38495205,2670.3,2669.3,5.67421723]
[1723374915698,2.359,2670.1,2669.3,5.67421723]
[1723374915904,0.02595205,2670.0,2669.4,0.06312417]
[1723374916393,2.359,2670.1,2669.5,0.0630931]
[1723374916561,2.359,2670.1,2669.2,3.72]
[1723374916763,2.359,2670.1,2669.3,0.372]
[1723374916964,2.359,2670.1,2669.3,0.43515524]
[1723374917587,0.02595205,2670.0,2669.3,0.43515524]
[1723374919485,7.3,2670.4,2669.5,2.3142]
[1723374919695,7.3,2670.4,2669.6,0.78891131]
[1723374919994,7.3,2670.4,2669.7,0.07489397]
[1723374920200,7.3,2670.4,2669.6,3.85197334]
[1723374920498,7.3,2670.4,2669.9,2.3142]
[1723374920705,2.359,2670.8,2670.0,0.07489398]
[1723374920866,2.359,2670.8,2670.0,0.36918552]
[1723374921296,2.359,2671.1,2670.0,0.36918552]
[1723374921499,2.359,2671.5,2670.1,2.3142]
[1723374921704,2.359,2671.5,2670.2,0.64321268]
[1723374921909,2.359,2671.5,2670.4,2.3142]
[1723374922204,0.02595205,2671.4,2670.4,2.3142]
[1723374922359,0.02595205,2671.4,2670.5,0.06260221]
[1723374922565,0.02595205,2671.4,2670.6,0.23768022]
[1723374922765,0.02595205,2671.4,2670.7,0.06253277]
[1723374923082,2.359,2671.5,2670.7,0.13740824]
[1723374924172,2.359,2671.8,2670.7,0.13740824]
[1723374924492,2.359,2671.8,2670.9,2.3142]
[1723374924792,2.359,2671.8,2671.0,0.07486318]
[1723374924993,2.359,2671.8,2671.0,0.13677677]
[1723374925963,0.02595205,2671.7,2671.0,0.06191359]
[1723374926402,0.02595205,2671.7,2670.4,3.0]
[1723374926579,2.4188,2671.6,2670.4,3.0]
[1723374926779,0.02595205,2671.5,2670.5,0.06206143]
[1723374927568,2.4188,2671.4,2670.5,0.06206143]
[1723374927773,0.27042726,2671.3,2670.5,0.06206143]
[1723374929302,2.4188,2671.2,2670.5,0.06206143]
[1723374929505,2.44475205,2671.1,2669.9,2.3424]
[1723374929805,3.0,2671.9,2670.6,0.06205613]
[1723374929806,2.4188,2670.9,2670.6,0.06205613]
[1723374930016,2.4188,2670.7,2670.6,0.06205613]
[1723374930190,2.4188,2670.7,2669.4,3.72]
[1723374930191,2.4188,2670.6,2669.4,3.72]
[1723374930391,0.02595205,2670.5,2669.5,0.06239774]
[1723374930600,0.24447521,2670.4,2669.5,0.44063751]
[1723374930806,0.02595205,2670.3,2669.5,0.44063751]
[1723374931180,0.02595205,2670.3,2669.6,2.3424]
[1723374931381,0.02595205,2670.5,2669.6,2.3424]
[1723374931585,0.02595205,2670.5,2669.7,0.33860699]
[1723374931910,0.02595205,2670.5,2668.7,3.59843822]
[1723374931911,2.4188,2670.1,2668.5,3.59966671]
[1723374932094,2.4188,2670.1,2669.8,0.05621702]
[1723374932095,2.4188,2669.9,2669.8,0.05621702]
[1723374932413,2.4188,2669.9,2667.5,2.73968384]
[1723374932576,0.87542726,2669.8,2668.1,0.58714714]
[1723374932779,2.4188,2669.6,2668.1,0.58714714]
[1723374932980,0.02595205,2669.5,2668.2,0.04956694]
[1723374933214,0.24447521,2669.4,2667.8,3.23424]
[1723374933417,0.02595205,2669.3,2667.9,0.04966024]
[1723374935516,0.02595205,2669.3,2668.0,0.55]
[1723374935732,0.02595205,2669.3,2667.9,0.04966024]
[1723374936026,0.02595205,2669.3,2667.8,3.23424]
[1723374936027,0.35299478,2669.3,2668.0,0.37801916]
[1723374936327,0.02595205,2669.2,2668.0,0.37801916]
[1723374937124,0.02595205,2669.2,2668.0,6.05223639]
[1723374937288,0.02595205,2669.2,2668.1,0.55]
[1723374937507,0.32704273,2669.3,2668.2,0.07493592]
[1723374937703,2.4188,2669.6,2668.3,2.3424]
[1723374937946,2.4188,2669.6,2668.4,0.62492902]
[1723374938151,2.4188,2669.6,2668.4,35.6752546]
[1723374938749,2.4188,2669.6,2668.4,35.60032558]
[1723374938964,0.02595205,2669.5,2668.4,0.60032558]
[1723374939107,2.66068,2669.6,2668.5,0.29427256]
[1723374939302,0.02595205,2669.5,2668.5,0.29427256]
[1723374939549,0.02595205,2669.5,2668.6,0.05020445]
[1723374939848,0.02595205,2669.5,2668.6,1.00707387]
[1723374940348,2.4188,2669.6,2668.7,0.074928]
[1723374940547,9.7188,2669.9,2668.7,0.074928]
[1723374940747,0.02595205,2669.8,2668.8,0.05015701]
[1723374941456,10.69068,2669.9,2668.9,2.46742523]
[1723374941613,0.02595205,2669.8,2669.0,0.24674252]
[1723374941947,0.02595205,2669.8,2669.1,0.05031783]
[1723374942654,2.4188,2669.9,2669.1,0.12523521]
[1723374943004,0.02595205,2669.8,2669.1,0.12523521]
[1723374943210,0.02595205,2669.8,2669.1,0.05031783]
[1723374943528,0.02595205,2669.8,2669.1,0.12523524]
[1723374943846,0.02595205,2669.8,2669.1,0.12524083]
[1723374944438,0.02595205,2669.8,2669.1,0.05031783]
[1723374944645,0.02595205,2669.8,2668.8,5.67421723]
[1723374944856,0.02595205,2669.8,2668.9,0.05029897]
[1723374945161,0.24447521,2669.7,2668.9,0.05029897]
[1723374945322,0.02595205,2669.6,2668.9,0.05029897]
[1723374945853,2.3096,2669.5,2668.9,0.05029897]
[1723374946015,0.02595205,2669.4,2668.9,0.05029897]
[1723374946215,0.02595205,2669.4,2668.2,3.72]
[1723374946519,0.02595205,2669.4,2668.3,0.4224855]
[1723374946520,0.23355521,2669.3,2668.3,0.4224855]
[1723374946718,0.02595205,2669.2,2668.3,0.4224855]
[1723374946918,0.02595205,2669.2,2668.3,0.0504855]
[1723374947814,2.3096,2669.1,2668.3,0.0504855]
[1723374948015,0.02595205,2669.0,2668.3,0.0504855]
[1723374949554,0.02595205,2669.1,2668.3,0.0504855]
[1723374949764,0.02595205,2669.1,2668.3,0.42753405]
[1723374950522,0.02595205,2669.2,2668.3,0.42753405]
[1723374952627,0.02595205,2669.2,2668.3,0.0504855]
[1723374953326,0.02595205,2669.2,2667.6,2.91570074]
[1723374953327,2.3096,2669.1,2667.6,2.91570074]
[1723374953643,2.3096,2668.8,2667.6,2.3285]
[1723374953829,0.98691205,2668.7,2667.7,0.05084159]
[1723374954031,0.98691205,2668.7,2667.8,2.3285]
[1723374954259,0.02595205,2668.7,2667.9,0.05077937]
[1723374955055,0.23355521,2669.3,2667.4,2.3285]
[1723374955056,2.3096,2668.6,2667.4,2.3285]
[1723374955375,0.25691205,2668.5,2667.5,0.05090382]
[1723374956076,0.25691205,2668.5,2667.5,0.12586569]
[1723374956234,0.25691205,2668.5,2667.5,0.12586561]
[1723374956771,0.25691205,2668.5,2667.5,0.05090382]
[1723374957074,0.25691205,2668.5,2667.6,0.23794038]
[1723374957433,0.25691205,2668.5,2667.7,0.05084159]
[1723374960087,2.3096,2668.3,2667.7,0.05084159]
[1723374960251,0.02595205,2668.2,2667.7,0.05084159]
[1723374960430,0.02595205,2668.2,2667.2,3.72]
[1723374960784,0.02595205,2668.2,2667.3,0.05096605]
[1723374961449,0.02595205,2668.2,2667.3,0.12593102]
[1723374961780,3.0,2669.1,2667.5,2.3285]
[1723374961781,0.02595205,2669.0,2667.5,2.3285]
[1723374961979,0.02595205,2669.0,2667.6,0.55]
[1723374962285,0.02595205,2669.0,2667.7,2.3285]
[1723374962436,0.02595205,2669.0,2667.8,0.5929907]
[1723374962631,0.02595205,2669.0,2667.9,0.0513063]
[1723374963232,2.3096,2668.9,2667.9,0.0513063]
[1723374963457,2.3096,2668.9,2667.7,2.3285]
[1723374963458,0.02595205,2668.8,2667.7,2.3285]
[1723374963705,0.23355521,2668.7,2667.8,0.05121945]
[1723374963850,0.02595205,2668.8,2667.8,0.05121945]
[1723374964069,0.02595205,2669.1,2667.9,2.3285]
[1723374964448,0.02595205,2669.1,2668.0,0.05135256]
[1723374965059,0.02595205,2669.1,2668.1,2.3285]
[1723374965256,0.02595205,2669.1,2668.2,0.28926824]
[1723374965655,0.02595205,2669.1,2668.3,0.07494242]
[1723374965982,0.02595205,2669.1,2668.4,0.05111022]
[1723374966686,0.02595205,2669.1,2668.1,2.3285]
[1723374966859,0.02595205,2669.1,2668.5,0.05107913]
[1723374967185,0.3025952,2669.0,2668.1,2.3285]
[1723374967484,0.02595205,2668.9,2668.1,2.3285]
[1723374967693,0.02595205,2668.9,2668.2,0.05117241]
[1723374969476,2.4377,2668.8,2668.2,0.05117241]
[1723374969637,0.27231725,2668.7,2667.7,2.341]
[1723374969842,3.27231725,2668.7,2667.8,0.05130788]
[1723374971329,2.9877,2668.6,2667.8,0.05130788]
[1723374971537,3.65195377,2668.5,2667.3,2.341]
[1723374971704,3.65195377,2668.5,2667.9,0.05136892]
[1723374972041,3.65195377,2668.5,2667.3,2.341]
[1723374972337,3.65195377,2668.5,2667.4,0.05153185]
[1723374972338,2.4377,2668.3,2667.4,0.05153185]
[1723374972554,7.3,2668.4,2667.4,0.05153185]
[1723374972555,3.01365205,2668.2,2667.4,0.05153185]
[1723374972832,3.01365205,2668.2,2666.6,2.341]
[1723374973030,3.0,2668.1,2666.6,2.341]
[1723374973327,1.17731726,2668.0,2666.7,0.28597507]
[1723374973887,1.17731726,2668.0,2666.8,0.07498619]
[1723374974088,1.17731726,2668.0,2666.9,0.05236963]
[1723374974398,0.02595205,2667.9,2666.8,0.07498619]
[1723374974737,0.02595205,2667.9,2666.9,2.39345078]
[1723374974738,0.42032693,2667.9,2666.9,2.39345078]
[1723374974884,0.42032693,2667.9,2667.0,0.07498099]
[1723374975123,0.42032693,2667.9,2667.1,0.05238852]
[1723374975124,0.02595205,2667.8,2667.1,0.05238852]
[1723374975321,3.02595205,2667.8,2667.1,0.05238852]
[1723374975547,3.02595205,2667.8,2666.6,2.341]
[1723374975744,3.02595205,2667.8,2667.2,0.05232051]
[1723374975953,0.5883979,2667.7,2666.6,2.341]
[1723374976159,0.02595205,2667.6,2666.6,2.341]
[1723374976377,0.02595205,2667.6,2666.7,0.05247615]
[1723374977832,0.02595205,2667.6,2666.7,0.12745785]
[1723374978020,0.02595205,2667.6,2666.7,0.29932194]
[1723374978574,0.02595205,2667.6,2666.8,0.07498171]
[1723374978927,0.02595205,2667.6,2666.9,0.05242864]
[1723374979873,2.4377,2667.5,2666.6,2.341]
[1723374980075,0.27231725,2667.4,2666.7,0.05249459]
[1723374982038,0.27231725,2667.4,2666.3,5.341]
[1723374982244,0.27231725,2667.4,2666.4,0.05256219]
[1723374983378,3.27231725,2667.4,2666.4,0.05256219]
[1723374983539,2.4377,2667.2,2666.4,0.05256219]
[1723374983738,0.02595205,2667.1,2666.4,2.39356219]
[1723374984075,0.02595205,2667.1,2666.5,0.05261589]
[1723374984591,0.02595205,2667.3,2666.5,0.05261589]
[1723374985729,7.3,2667.4,2666.5,0.12760268]
[1723374985930,7.3,2667.4,2666.5,0.37446295]
[1723374986146,7.3,2667.4,2666.5,0.29947616]
[1723374986773,7.3,2667.4,2666.6,0.0749868]
[1723374986954,7.3,2667.4,2666.5,0.29947616]
[1723374987165,2.31735205,2667.3,2666.7,0.05272702]
[1723374987469,0.02595205,2667.2,2666.8,0.05269588]
[1723374987679,3.0214,2667.3,2666.3,0.44699462]
[1723374987835,0.02595205,2667.2,2666.4,0.46951989]
[1723374988188,0.02595205,2667.2,2666.5,0.074992]
[1723374988493,7.3,2667.4,2666.6,2.51905815]
[1723374988662,7.3,2667.4,2666.7,0.07498809]
[1723374988828,7.3,2667.4,2666.8,0.05269588]
[1723374989030,7.3,2667.4,2666.6,2.76737496]
[1723374989230,7.3,2667.4,2666.7,0.05272702]
[1723374989830,0.02595205,2667.3,2666.7,0.05272702]
[1723374990132,0.73259521,2667.2,2666.2,6.1863]
[1723374990360,0.02595205,2667.1,2666.8,0.05281764]
[1723374990552,7.3,2667.4,2666.2,6.1863]
[1723374990553,0.02595205,2667.3,2666.2,6.1863]
[1723374990788,0.02595205,2667.3,2666.9,0.05278651]
[1723374991095,0.02595205,2667.3,2666.3,0.61863]
[1723374991310,2.2914,2667.2,2666.4,0.05294219]
[1723374991596,0.02595205,2667.1,2666.4,0.05294219]
[1723374991809,0.02595205,2667.1,2666.2,6.1863]
[1723374991957,0.02595205,2667.1,2666.5,0.05295902]
[1723374992155,7.3,2668.1,2666.3,5.74921222]
[1723374992394,7.3,2668.1,2666.8,2.4663]
[1723374992556,7.3,2668.1,2666.9,2.54126787]
[1723374992902,0.02595205,2668.0,2666.9,2.51914556]
[1723374993208,2.2914,2668.1,2667.0,0.55191456]
[1723374993353,2.2914,2668.1,2666.9,2.51914556]
[1723374993354,0.02595205,2668.0,2666.9,2.51914556]
[1723374993554,0.02595205,2668.0,2667.1,0.05277223]
[1723374993758,0.02595205,2668.0,2667.0,0.05280336]
[1723374994284,2.2914,2667.9,2667.0,0.05280336]
[1723374994460,0.25768725,2667.8,2667.0,0.05280336]
[1723374994663,0.02595205,2667.7,2667.1,0.05255823]
[1723374994861,0.02595205,2667.7,2666.7,5.67421723]
[1723374995062,0.02595205,2667.7,2666.8,0.05265162]
[1723374995285,0.28086078,2667.7,2666.8,0.8719685]
[1723374996000,2.2914,2667.6,2666.8,0.05265162]
[1723374996159,0.02595205,2667.5,2666.8,0.05265162]
[1723374996354,0.02595205,2667.5,2666.2,6.1863]
[1723374996555,0.02595205,2667.5,2666.9,0.05071326]
[1723374996780,0.28673521,2667.4,2666.9,0.05071326]
[1723374997059,0.02595205,2667.3,2666.2,6.1863]
[1723374997286,2.2914,2667.2,2666.3,0.05092222]
[1723374997556,0.02595205,2667.1,2666.3,0.05092222]
[1723374997795,0.2317352,2667.0,2666.3,0.05092222]
[1723374997996,0.02595205,2666.9,2665.9,2.4663]
[1723374998482,0.02595205,2666.9,2666.0,0.05115955]
[1723374999328,2.2914,2666.8,2666.0,0.05115955]
[1723374999494,2.2914,2666.6,2666.0,0.05115955]
[1723374999698,0.02595205,2666.5,2666.0,0.05115955]
[1723374999898,0.02595205,2666.5,2666.1,0.05122067]
[1723375000305,0.02595205,2666.5,2665.5,2.4663]
[1723375000513,0.58086078,2666.5,2665.6,0.05137643]
[1723375000724,3.02595205,2666.5,2665.6,0.05137643]
[1723375001079,0.02595205,2666.5,2665.6,0.05137643]
[1723375003924,0.55,2667.6,2665.7,2.54130893]
[1723375003925,2.2914,2667.1,2665.7,2.54130893]
[1723375004126,0.22914,2667.0,2665.8,0.25926854]
[1723375004327,0.22914,2667.0,2665.9,0.07500905]
[1723375004533,0.22914,2667.0,2665.9,0.1264286]
[1723375004842,0.02595205,2666.9,2665.9,0.1264286]
[1723375005026,0.28060126,2666.9,2665.9,0.05141955]
[1723375005213,2.3411,2666.8,2665.9,0.05141955]
[1723375005414,0.02595205,2666.7,2665.7,2.4663]
[1723375005744,7.32595205,2666.7,2665.7,2.4663]
[1723375005914,7.32595205,2666.7,2665.8,0.05138794]
[1723375006116,0.9667052,2666.6,2665.5,2.3411]
[1723375006303,0.02595205,2666.5,2665.5,2.3411]
[1723375006504,0.02595205,2666.5,2665.6,0.05188574]
[1723375008545,2.3411,2666.4,2665.6,0.05188574]
[1723375008743,0.26265725,2666.3,2665.6,0.05188574]
[1723375008945,0.02595205,2666.2,2665.6,0.05188574]
[1723375011249,0.02595205,2666.3,2665.6,0.12691052]
[1723375011562,0.02595205,2666.5,2665.6,0.05188574]
[1723375011731,1.38932777,2666.5,2665.6,0.05188574]
[1723375016265,0.02595205,2666.5,2665.7,2.3411]
[1723375016434,9.6411,2667.1,2665.7,2.3411]
[1723375016663,0.02595205,2667.0,2665.8,0.12686512]
[1723375016865,0.99006205,2667.0,2665.8,0.37885021]
[1723375017072,0.96411,2667.0,2665.8,0.37885021]
[1723375017290,0.02595205,2666.9,2665.8,0.37885021]
[1723375017466,1.08906826,2666.9,2665.9,2.3411]
[1723375017667,1.08906826,2666.9,2666.0,0.07500731]
[1723375017877,9.6411,2667.1,2666.1,2.3411]
[1723375017878,7.3,2667.1,2666.1,2.3411]
[1723375018082,7.3,2667.4,2666.3,2.3411]
[1723375018278,2.3411,2667.8,2666.5,2.3411]
[1723375018597,0.02595205,2667.7,2666.6,0.12659517]
[1723375018764,0.02595205,2667.7,2666.6,0.05161117]
[1723375019482,2.3411,2667.6,2666.6,0.05161117]
[1723375019795,0.02595205,2667.5,2666.6,0.05161117]
[1723375019997,0.57595205,2667.5,2666.6,0.05161117]
[1723375020299,2.3411,2667.4,2666.6,0.05161117]
[1723375020510,0.86765726,2667.3,2666.7,0.051473]
[1723375020746,0.02595205,2667.2,2666.7,0.051473]
[1723375020883,0.02595205,2667.2,2666.1,6.0611]
[1723375021221,0.02595205,2667.2,2665.5,3.0]
[1723375021222,2.3411,2667.1,2666.2,0.0516287]
[1723375021379,2.3411,2666.9,2666.2,0.0516287]
[1723375021711,0.57595205,2666.8,2665.8,2.3411]
[1723375021920,0.02595205,2666.7,2665.1,0.1306378]
[1723375022074,0.31765726,2666.7,2665.2,2.3411]
[1723375022269,0.31765726,2666.7,2665.2,2.39315838]
[1723375022511,0.55,2666.6,2665.2,2.39315838]
[1723375022810,0.02595205,2666.5,2665.3,0.25237962]
[1723375023112,2.3411,2666.4,2665.3,3.30440683]
[1723375023269,2.3411,2666.4,2665.3,0.30440683]
[1723375023270,0.02595205,2666.3,2665.3,0.30440683]
[1723375023998,0.02595205,2666.3,2665.3,0.05202721]
[1723375023999,2.3411,2666.2,2665.3,0.05202721]
[1723375024178,2.3411,2666.2,2665.1,0.1306378]
[1723375024179,2.3411,2666.0,2665.1,0.1306378]
[1723375024369,2.3411,2665.8,2665.1,0.1306378]
[1723375024574,0.57595205,2665.7,2665.1,0.1306378]
[1723375024917,3.57595205,2665.7,2665.1,0.1306378]
[1723375025083,3.0,2665.7,2665.1,0.1306378]
[1723375025292,0.02595205,2665.6,2665.1,0.1306378]
[1723375025619,3.0,2666.0,2665.2,0.04513818]
[1723375025774,0.40875952,2665.9,2665.2,0.04513818]
[1723375026123,0.02595205,2665.9,2665.1,0.1306378]
[1723375027778,0.02595205,2665.9,2665.2,0.04513818]
[1723375028349,2.4765,2665.8,2665.1,0.1306378]
[1723375028495,0.02595205,2665.7,2665.1,0.1306378]
[1723375028696,3.57619725,2665.7,2665.1,0.1306378]
[1723375029093,3.57619725,2665.7,2665.1,2.5070378]
[1723375029292,3.56409521,2666.1,2665.1,2.5070378]
[1723375029293,0.02595205,2665.6,2665.1,0.1306378]
[1723375029492,0.02595205,2665.9,2665.1,0.1306378]
[1723375030032,0.57595205,2665.9,2665.1,0.1306378]
[1723375030241,0.35759521,2665.8,2665.1,0.1306378]
[1723375030442,2.50245205,2665.7,2665.1,0.1306378]
[1723375030651,3.0,2665.6,2665.2,0.04513818]
[1723375030937,2.50245205,2665.5,2665.1,0.1306378]
[1723375031144,2.4765,2665.3,2665.1,0.1306378]
[1723375031354,0.02595205,2665.2,2665.1,0.1306378]
[1723375031702,2.4765,2664.7,2662.5,2.3764]
[1723375031858,2.50245205,2664.7,2662.7,2.3764]
[1723375032018,3.02595205,2664.6,2662.9,2.3764]
[1723375032231,3.02595205,2664.6,2663.0,0.24514874]
[1723375032232,0.55024521,2664.5,2663.0,0.24514874]
[1723375032555,3.05245205,2664.4,2663.0,0.29068079]
[1723375032903,3.0,2664.3,2663.0,0.29068079]
[1723375033129,1.18119725,2664.2,2663.0,0.29068079]
[1723375033529,1.18119725,2664.2,2663.0,0.04553205]
[1723375034036,2.4765,2664.1,2663.0,0.04553205]
[1723375034233,0.57595205,2664.0,2663.0,0.04553205]
[1723375034553,2.4765,2663.9,2662.5,2.3764]
[1723375034709,0.02595205,2663.8,2663.1,2.3764]
[1723375035110,3.02595205,2664.1,2663.2,0.04487598]
[1723375035420,3.02595205,2664.1,2663.1,2.3764]
[1723375035622,0.55024521,2664.0,2663.2,0.07509366]
[1723375035826,3.0,2664.1,2663.2,0.11991413]
[1723375036023,2.4765,2664.5,2663.2,0.04482047]
[1723375036024,0.02595205,2664.0,2663.2,0.04482047]
[1723375036857,2.4765,2664.5,2663.2,0.36203251]
[1723375037058,7.3,2664.8,2663.3,2.9264]
[1723375037356,7.3,2664.8,2663.4,0.07507559]
[1723375037357,0.02595205,2664.7,2663.4,0.07507559]
[1723375037549,7.3,2664.8,2663.4,0.07507559]
[1723375037751,0.73,2664.7,2663.6,2.3764]
[1723375037916,7.3,2664.8,2663.7,0.07506839]
[1723375038117,7.3,2664.8,2663.8,0.07506431]
[1723375038629,3.0,2664.7,2663.9,0.04456872]
[1723375038838,3.02595205,2664.7,2663.9,0.04456872]
[1723375039257,1.03259521,2664.6,2663.9,0.04456872]
[1723375039470,0.02595205,2664.5,2663.6,2.3764]
[1723375039752,0.02595205,2664.5,2664.0,0.04453752]
[1723375040123,2.4765,2664.4,2662.6,2.3764]
[1723375040326,0.02595205,2664.3,2662.6,2.62710378]
[1723375040526,0.57595205,2664.3,2662.7,0.04494328]
[1723375040859,0.02595205,2664.2,2662.6,2.62710378]
[1723375041148,0.02595205,2664.2,2662.8,0.04491206]
[1723375041337,0.02595205,2664.2,2662.7,0.30765366]
[1723375041539,0.02595205,2664.2,2662.9,0.04488083]
[1723375041741,0.02595205,2664.2,2662.8,0.04491206]
[1723375041916,0.63119725,2664.2,2663.0,0.04484961]
[1723375042118,2.50245205,2664.1,2663.1,0.04481839]
[1723375042312,3.55,2664.0,2663.1,0.04481839]
[1723375042515,0.02595205,2663.9,2662.7,2.3764]
[1723375042753,3.0,2664.0,2662.8,0.0750996]
[1723375043054,0.02595205,2663.9,2662.8,0.36516162]
[1723375043254,0.02595205,2663.9,2662.8,0.29006202]
[1723375044343,0.02595205,2663.9,2662.8,3.29006202]
[1723375045046,0.02595205,2664.0,2663.0,2.3764]
[1723375045372,2.4765,2664.4,2663.1,0.29264]
[1723375045373,0.02595205,2664.3,2663.1,0.29264]
[1723375045514,0.02595205,2664.3,2663.1,0.33755829]
[1723375045878,0.02595205,2664.3,2663.2,0.07507859]
[1723375046058,7.3,2664.7,2663.3,3.0199]
[1723375046268,0.02595205,2664.6,2663.4,0.07507025]
[1723375046423,0.02595205,2664.6,2663.4,0.11976541]
[1723375047266,0.02595205,2664.6,2663.4,0.04469516]
[1723375047563,4.04487927,2664.6,2663.4,0.39911975]
[1723375047714,3.02595205,2664.6,2663.4,0.39911975]
[1723375048228,3.02595205,2664.6,2663.4,0.32404504]
[1723375049334,3.02595205,2664.6,2663.5,2.4699]
[1723375049861,3.02595205,2664.6,2663.6,0.04454027]
[1723375050034,3.02595205,2664.6,2663.6,0.32391929]
[1723375051263,0.02595205,2664.6,2663.6,0.32391929]
[1723375052661,0.02595205,2664.6,2663.7,0.07506558]
[1723375052861,0.02595205,2664.6,2663.7,0.04444249]
[1723375053971,0.02595205,2664.6,2663.7,0.11951385]
[1723375054261,0.02595205,2664.6,2663.7,0.33132178]
[1723375055246,0.02595205,2664.6,2663.8,0.07506634]
[1723375055440,7.3,2664.7,2663.9,2.4699]
[1723375055645,7.3,2664.7,2664.0,0.07505645]
[1723375055841,7.3,2664.7,2664.1,2.4699]
[1723375056041,7.3,2664.7,2664.2,0.3295501]
[1723375056366,9.7384,2665.5,2664.3,0.07505445]
[1723375056568,0.02595205,2665.4,2664.3,0.07505445]
[1723375056771,2.4384,2665.9,2664.4,2.4699]
[1723375056947,0.30529353,2665.8,2664.5,0.32954493]
[1723375057129,0.33124558,2665.8,2664.5,0.32954493]
[1723375057335,0.33124558,2665.8,2664.6,0.04369944]
[1723375058075,3.33124558,2665.8,2664.6,0.11874887]
[1723375058281,3.57696456,2665.7,2664.6,0.11874887]
[1723375058643,3.02595205,2665.6,2664.6,0.11874887]
[1723375058893,0.02595205,2665.6,2664.6,0.11874887]
[1723375059054,0.02595205,2665.6,2664.6,0.04369944]
[1723375059576,0.02595205,2665.6,2664.4,2.4699]
[1723375059777,0.41677306,2665.6,2664.5,0.29072062]
[1723375060348,0.41677306,2665.6,2664.6,2.54494298]
[1723375060570,0.02595205,2665.6,2664.6,2.54494298]
[1723375060777,0.02595205,2665.6,2664.7,0.04366826]
[1723375060986,0.61453525,2666.0,2664.8,0.07503684]
[1723375061353,0.02595205,2666.7,2665.0,2.4699]
[1723375061354,2.4384,2666.7,2665.0,2.4699]
[1723375061557,2.4384,2666.7,2665.1,0.9388677]
[1723375061558,0.30264616,2666.6,2665.1,0.9388677]
[1723375061863,0.30264616,2666.6,2665.2,2.4699]
[1723375062191,0.30264616,2666.6,2665.4,2.4699]
[1723375062192,0.02595205,2666.5,2665.4,2.4699]
[1723375062547,0.02595205,2666.5,2665.5,0.04318605]
[1723375062872,0.30264616,2666.6,2665.5,0.04318605]
[1723375062873,2.4384,2667.1,2665.6,2.54491375]
[1723375063046,0.02595205,2667.0,2665.7,0.55]
[1723375063359,0.18707687,2668.2,2665.8,2.54489888]
[1723375063360,2.46435205,2667.6,2665.8,2.54489888]
[1723375063563,2.46435205,2667.6,2666.0,2.4699]
[1723375063564,2.4384,2667.6,2666.0,2.4699]
[1723375063747,2.4384,2667.6,2666.2,2.4699]
[1723375064083,0.24384,2667.5,2666.3,0.42728426]
[1723375064285,0.26979205,2667.5,2666.4,0.55]
[1723375064490,0.02595205,2667.5,2666.4,0.55]